bitfinex/quotes_BTCUSD_20250527
["timestamp","ask_amount","ask_price","bid_price","bid_amount"]
[1748333359639,0.05353019,109690.0,109680.0,0.59210694]
[1748333359861,0.03650455,109690.0,109680.0,0.59210694]
[1748333360080,0.03650455,109690.0,109680.0,0.9100572]
[1748333360303,0.01827194,109690.0,109680.0,0.9100572]
[1748333360519,0.0273882,109690.0,109680.0,0.59210694]
[1748333360735,4e-05,109690.0,109680.0,0.9263572]
[1748333360955,0.03423428,109710.0,109700.0,0.54966169]
[1748333361170,0.03423428,109710.0,109700.0,3.03003395]
[1748333361384,0.03423428,109710.0,109700.0,2.58943795]
[1748333361618,0.03423428,109710.0,109700.0,1.37581369]
[1748333361866,0.03423428,109710.0,109700.0,1.69376395]
[1748333362086,0.002,109710.0,109700.0,1.69376395]
[1748333362274,0.00249938,109710.0,109700.0,1.69376395]
[1748333363897,0.00249938,109710.0,109700.0,1.79980951]
[1748333364313,0.00249938,109710.0,109700.0,1.80080951]
[1748333364967,0.00249938,109710.0,109700.0,2.40668951]
[1748333365618,0.00249938,109710.0,109700.0,2.08873925]
[1748333365838,0.00249938,109710.0,109700.0,2.40668951]
[1748333366044,0.00249938,109710.0,109700.0,2.40968951]
[1748333366757,0.00288363,109730.0,109720.0,0.54962348]
[1748333366971,0.00288363,109730.0,109720.0,1.4359762]
[1748333367190,0.00288363,109730.0,109720.0,1.77052646]
[1748333367413,0.00288363,109730.0,109720.0,1.87587202]
[1748333367850,0.00288363,109730.0,109720.0,1.90048044]
[1748333368275,0.00288363,109730.0,109720.0,1.92257052]
[1748333368495,0.00288363,109730.0,109720.0,1.58253018]
[1748333368719,0.00288363,109730.0,109720.0,1.90048044]
[1748333369206,0.00288363,109730.0,109720.0,1.58253018]
[1748333369423,0.00288363,109730.0,109720.0,1.87587202]
[1748333369636,0.00288363,109730.0,109720.0,1.90224078]
[1748333370062,0.00288363,109730.0,109720.0,1.8917891]
[1748333370276,0.00288363,109730.0,109720.0,1.90419048]
[1748333370511,0.00288363,109730.0,109720.0,1.90619048]
[1748333370723,0.00288363,109730.0,109720.0,1.58824022]
[1748333370928,0.00288363,109730.0,109720.0,1.90619048]
[1748333371786,0.00288363,109730.0,109720.0,1.58824022]
[1748333371999,0.00288363,109730.0,109720.0,1.89039048]
[1748333372212,0.07417366,109760.0,109740.0,0.23224895]
[1748333372427,0.01822256,109750.0,109740.0,0.57224895]
[1748333372644,0.20045531,109750.0,109740.0,1.22565895]
[1748333372858,0.02733417,109750.0,109740.0,1.22565895]
[1748333373102,0.02733409,109750.0,109740.0,1.22565895]
[1748333373961,0.01822256,109750.0,109740.0,1.23477139]
[1748333374173,0.01822256,109750.0,109740.0,1.22565895]
[1748333374636,0.01922215,109750.0,109740.0,1.22565895]
[1748333374848,0.01922215,109750.0,109740.0,1.23477139]
[1748333375063,0.0283336,109750.0,109740.0,1.24388375]
[1748333375276,0.04343351,109750.0,109740.0,1.22565895]
[1748333375459,0.05254504,109750.0,109740.0,1.23477139]
[1748333375723,0.05254504,109750.0,109740.0,1.22565895]
[1748333376142,0.05254504,109750.0,109740.0,1.23477139]
[1748333376372,0.2347773,109750.0,109740.0,1.22565895]
[1748333376582,0.04343401,109750.0,109740.0,1.23477139]
[1748333376793,0.04343401,109750.0,109740.0,1.22565895]
[1748333377009,0.05893401,109750.0,109740.0,1.22565895]
[1748333377223,0.06804554,109750.0,109740.0,1.22565895]
[1748333377622,0.06804554,109750.0,109740.0,1.23477139]
[1748333377847,0.06804554,109750.0,109740.0,1.22565895]
[1748333378066,0.06804554,109750.0,109740.0,1.57838537]
[1748333378291,0.05254554,109750.0,109740.0,1.22565895]
[1748333378508,0.05254554,109750.0,109740.0,1.57838537]
[1748333379168,0.22566668,109750.0,109740.0,1.57838537]
[1748333379389,0.05254595,109750.0,109740.0,1.57838537]
[1748333379639,0.05258595,109750.0,109740.0,1.58749781]
[1748333379845,0.05258595,109750.0,109740.0,1.57838537]
[1748333380282,0.33728189,109750.0,109740.0,0.342]
[1748333380495,0.63732921,109750.0,109740.0,0.342]
[1748333380934,0.63732921,109750.0,109740.0,0.002]
[1748333382278,0.23750208,109740.0,109730.0,0.34]
[1748333382491,0.32704764,109740.0,109730.0,0.34]
[1748333384467,0.34401443,109740.0,109730.0,0.34]
[1748333385597,0.34601443,109740.0,109730.0,0.34]
[1748333386002,0.22850641,109730.0,109720.0,0.19673317]
[1748333386208,0.32716524,109730.0,109720.0,0.24673327]
[1748333386405,0.60040524,109730.0,109720.0,0.24673327]
[1748333386801,0.61737203,109730.0,109720.0,0.19673327]
[1748333387239,0.61737203,109730.0,109720.0,0.0644511]
[1748333387935,0.61737203,109730.0,109720.0,0.4044511]
[1748333388359,0.60283118,109730.0,109720.0,0.4044511]
[1748333388601,0.34413203,109730.0,109720.0,0.3544511]
[1748333388807,0.61737203,109730.0,109720.0,0.58673327]
[1748333389030,0.61837203,109730.0,109720.0,0.4044511]
[1748333389236,0.61837203,109730.0,109720.0,0.3544511]
[1748333390696,0.61937203,109730.0,109720.0,0.3544511]
[1748333391454,0.61937203,109730.0,109720.0,0.0144511]
[1748333391727,0.64486716,109730.0,109720.0,0.0144511]
[1748333391989,0.65356996,109730.0,109720.0,0.0144511]
[1748333392408,0.65358073,109730.0,109720.0,0.0144511]
[1748333396991,0.65362073,109730.0,109720.0,0.0144511]
[1748333397527,0.38038073,109730.0,109720.0,0.0144511]
[1748333397701,0.65366073,109730.0,109720.0,0.0144511]
[1748333397911,0.64495793,109730.0,109720.0,0.0144511]
[1748333398120,0.69809487,109730.0,109720.0,0.0144511]
[1748333399529,0.73879433,109730.0,109720.0,0.0144511]
[1748333399748,0.75836033,109730.0,109720.0,0.0144511]
[1748333399969,0.75736033,109730.0,109720.0,0.0144511]
[1748333400179,0.75636033,109730.0,109720.0,0.0144511]
[1748333400397,0.75836033,109730.0,109720.0,0.0144511]
[1748333400610,0.48608033,109730.0,109720.0,0.0144511]
[1748333400822,1.42907033,109730.0,109720.0,0.0144511]
[1748333401084,1.33312033,109730.0,109720.0,0.0144511]
[1748333402422,0.60968926,109710.0,109700.0,0.003]
[1748333402654,0.60968926,109710.0,109700.0,0.00309059]
[1748333402655,1.81106223,109710.0,109700.0,0.00309059]
[1748333402878,2.1280743,109710.0,109700.0,0.00309059]
[1748333403127,0.59952582,109690.0,109680.0,0.002]
[1748333403337,1.57862935,109690.0,109680.0,0.00249938]
[1748333403807,1.23550901,109690.0,109680.0,0.00249938]
[1748333404057,0.43138163,109690.0,109680.0,0.00249938]
[1748333404280,0.32669804,109690.0,109680.0,0.00249938]
[1748333404503,0.32669804,109690.0,109680.0,0.01849938]
[1748333404724,0.32058186,109690.0,109680.0,0.01849938]
[1748333404973,0.59390186,109690.0,109680.0,0.01849938]
[1748333405423,0.57432608,109690.0,109680.0,0.01849938]
[1748333405656,0.57632608,109690.0,109680.0,0.01849938]
[1748333405887,0.60702554,109690.0,109680.0,0.01849938]
[1748333406119,0.60502554,109690.0,109680.0,0.01849938]
[1748333406567,0.60002554,109690.0,109680.0,0.01471102]
[1748333407284,0.06694356,109690.0,109680.0,0.56655379]
[1748333407536,0.08517617,109690.0,109680.0,0.64753854]
[1748333407970,0.01011593,109690.0,109680.0,0.97641854]
[1748333408187,0.01923203,109690.0,109680.0,0.64753854]
[1748333409075,0.02834829,109690.0,109680.0,0.63852839]
[1748333409697,0.22891326,109690.0,109680.0,0.63852839]
[1748333409900,0.04658107,109690.0,109680.0,0.63852839]
[1748333410108,0.21983757,109690.0,109680.0,0.41971102]
[1748333410323,0.20160496,109690.0,109680.0,0.61117693]
[1748333410540,0.20160496,109690.0,109680.0,0.62941121]
[1748333411344,0.20160496,109690.0,109680.0,0.41971102]
[1748333411567,0.20160496,109690.0,109680.0,0.57029444]
[1748333411773,0.20160496,109690.0,109680.0,0.62928076]
[1748333411988,0.19248853,109690.0,109680.0,0.62928076]
[1748333412205,0.3403483,109690.0,109680.0,0.34]
[1748333412433,0.35736037,109690.0,109680.0,0.34]
[1748333412629,0.28992965,109690.0,109680.0,0.34]
[1748333413739,0.28992965,109690.0,109680.0,0.39]
[1748333413957,0.28992965,109690.0,109680.0,0.58146608]
[1748333414171,0.56328965,109690.0,109680.0,0.61266608]
[1748333414372,0.56328965,109690.0,109680.0,0.4057]
[1748333415273,0.56328965,109690.0,109680.0,0.34]
[1748333415684,0.57908965,109690.0,109680.0,0.34907853]
[1748333415906,0.59418965,109690.0,109680.0,0.34907853]
[1748333416118,0.59418965,109690.0,109680.0,0.34]
[1748333418153,0.20971879,109670.0,109660.0,0.59984254]
[1748333418583,0.20971879,109670.0,109660.0,0.9489613]
[1748333418807,0.2006012,109670.0,109660.0,0.6126983]
[1748333419019,0.19148336,109670.0,109660.0,0.4212]
[1748333419242,0.19148336,109670.0,109660.0,0.3712]
[1748333419722,0.19148336,109670.0,109660.0,0.57282]
[1748333419934,0.19148336,109670.0,109660.0,0.60020609]
[1748333420203,0.19148336,109670.0,109660.0,0.58196849]
[1748333420441,0.01823593,109670.0,109660.0,0.65932443]
[1748333420685,0.01823543,109670.0,109660.0,0.66132443]
[1748333420912,0.02735352,109670.0,109660.0,0.66132443]
[1748333421380,0.21883705,109670.0,109660.0,0.97934983]
[1748333421607,0.21887705,109670.0,109660.0,0.97934983]
[1748333422023,0.2358902,109670.0,109660.0,0.97934983]
[1748333422497,0.04440667,109670.0,109660.0,0.97934983]
[1748333422930,0.05352485,109670.0,109660.0,0.97934983]
[1748333423357,0.24500838,109670.0,109660.0,0.97934983]
[1748333423573,0.04440667,109670.0,109660.0,0.97023132]
[1748333423786,0.05352468,109670.0,109660.0,0.97934983]
[1748333424123,0.06264286,109670.0,109660.0,0.97934983]
[1748333424451,0.06264353,109670.0,109660.0,0.97934983]
[1748333425049,0.23589096,109670.0,109660.0,0.97023132]
[1748333425483,0.21765486,109670.0,109660.0,0.36126758]
[1748333425705,0.21765486,109670.0,109660.0,0.55276832]
[1748333426068,0.21765486,109670.0,109660.0,0.90597339]
[1748333427273,0.21765486,109670.0,109660.0,0.92207339]
[1748333427705,0.21765486,109670.0,109660.0,0.99689215]
[1748333427913,0.21765486,109670.0,109660.0,1.00601074]
[1748333428339,0.01705315,109670.0,109660.0,1.99375781]
[1748333428963,0.01705315,109670.0,109660.0,1.64055274]
[1748333429150,4e-05,109670.0,109660.0,1.99375781]
[1748333429709,4e-05,109670.0,109660.0,2.02111381]
[1748333429911,4e-05,109670.0,109660.0,1.9856843]
[1748333435496,4e-05,109670.0,109660.0,1.66790874]
[1748333435685,4e-05,109670.0,109660.0,1.9856843]
[1748333438055,4e-05,109670.0,109660.0,1.39450874]
[1748333438283,4e-05,109670.0,109660.0,1.9856843]
[1748333438837,4e-05,109670.0,109660.0,1.66790874]
[1748333439042,0.02739352,109670.0,109660.0,1.4274713]
[1748333439246,0.02739344,109670.0,109660.0,1.4274713]
[1748333439830,0.03651153,109670.0,109660.0,1.33792574]
[1748333440043,0.03651153,109670.0,109660.0,1.06452574]
[1748333440245,0.20975906,109670.0,109660.0,0.44560449]
[1748333440461,0.20064138,109670.0,109660.0,0.5436494]
[1748333440677,0.20858489,109670.0,109660.0,0.40214849]
[1748333441196,0.20858489,109670.0,109660.0,0.59364948]
[1748333441614,0.20858489,109670.0,109660.0,0.54364948]
[1748333442724,0.20858489,109670.0,109660.0,0.6027684]
[1748333442958,0.20858489,109670.0,109660.0,0.59364948]
[1748333443143,0.22488489,109670.0,109660.0,0.35214849]
[1748333443371,0.22488489,109670.0,109660.0,0.53453039]
[1748333443587,0.15858489,109670.0,109660.0,0.91142487]
[1748333443796,0.15858489,109670.0,109660.0,0.94392487]
[1748333444013,0.16770282,109670.0,109660.0,0.94392487]
[1748333444219,0.16770282,109670.0,109660.0,0.94392504]
[1748333444426,0.15858489,109670.0,109660.0,0.41126758]
[1748333444637,0.15858489,109670.0,109660.0,0.35214849]
[1748333444853,0.17398489,109670.0,109660.0,0.35214849]
[1748333446132,0.18988489,109670.0,109660.0,0.35214849]
[1748333446755,0.18988489,109670.0,109660.0,0.40214849]
[1748333448385,0.02617962,109670.0,109660.0,0.5936494]
[1748333448583,0.01706144,109670.0,109660.0,1.23376223]
[1748333449014,0.01706144,109670.0,109660.0,2.85671223]
[1748333449185,0.01706144,109670.0,109660.0,2.65200523]
[1748333449387,0.01706144,109670.0,109660.0,2.57534479]
[1748333450398,0.03646738,109680.0,109670.0,0.20971906]
[1748333450603,0.04440453,109680.0,109670.0,1.64693262]
[1748333450822,0.04440453,109680.0,109670.0,1.19206862]
[1748333452338,0.0352876,109680.0,109670.0,1.19206862]
[1748333452542,0.04440453,109680.0,109670.0,1.19206862]
[1748333452774,0.02617092,109680.0,109670.0,1.19206862]
[1748333452982,0.03528785,109680.0,109670.0,1.21942262]
[1748333453401,0.03528785,109680.0,109670.0,0.90164706]
[1748333453620,0.03528785,109680.0,109670.0,0.88524906]
[1748333453831,0.03528785,109680.0,109670.0,1.13358662]
[1748333454028,0.03528785,109680.0,109670.0,1.13638318]
[1748333454463,0.01705416,109680.0,109670.0,1.13638318]
[1748333454674,0.01705416,109680.0,109670.0,1.47638318]
[1748333454892,0.01705416,109680.0,109670.0,1.56592874]
[1748333455350,0.00965501,109690.0,109680.0,0.29089994]
[1748333455581,0.03581971,109690.0,109680.0,0.76164106]
[1748333456036,0.03581962,109690.0,109680.0,0.76164106]
[1748333456482,0.0449358,109690.0,109680.0,0.40857694]
[1748333456691,0.0459358,109690.0,109680.0,0.74975806]
[1748333456919,0.0469358,109690.0,109680.0,0.75341206]
[1748333457150,0.0469358,109690.0,109680.0,0.64396406]
[1748333457364,0.05605215,109690.0,109680.0,0.64396406]
[1748333457772,0.05605215,109690.0,109680.0,0.62816406]
[1748333457986,0.06516858,109690.0,109680.0,0.27509994]
[1748333458211,0.05605215,109690.0,109680.0,0.76147806]
[1748333458451,0.05605215,109690.0,109680.0,0.61276406]
[1748333458659,0.05605206,109690.0,109680.0,0.25969994]
[1748333458867,0.05605206,109690.0,109680.0,0.61276406]
[1748333459674,0.06516849,109690.0,109680.0,0.61276406]
[1748333459881,0.01823361,109680.0,109670.0,0.95231866]
[1748333460095,0.21598309,109680.0,109670.0,0.367354]
[1748333460311,0.22391459,109680.0,109670.0,0.53148353]
[1748333460512,0.22391459,109680.0,109670.0,0.54060162]
[1748333460749,0.03528304,109680.0,109670.0,0.96190143]
[1748333460947,0.04440047,109680.0,109670.0,0.96190143]
[1748333461198,0.04439981,109680.0,109670.0,0.97101911]
[1748333461405,0.0170486,109680.0,109670.0,1.74600767]
[1748333461622,0.0170486,109680.0,109670.0,1.62070355]
[1748333461836,0.0170486,109680.0,109670.0,1.97376767]
[1748333462063,0.01977102,109690.0,109680.0,0.29039994]
[1748333462282,0.04592879,109690.0,109680.0,1.22419606]
[1748333462459,0.03581261,109690.0,109680.0,1.22419606]
[1748333462711,0.04492879,109690.0,109680.0,0.79446706]
[1748333463150,0.04492871,109690.0,109680.0,0.79446706]
[1748333463387,0.04592871,109690.0,109680.0,0.79446706]
[1748333463650,0.03781253,109690.0,109680.0,0.79446706]
[1748333463899,0.04692863,109690.0,109680.0,0.79446706]
[1748333464124,0.04692863,109690.0,109680.0,0.44140294]
[1748333464339,0.04692863,109690.0,109680.0,0.79446706]
[1748333464523,0.03781253,109690.0,109680.0,0.79446706]
[1748333465960,0.04692863,109690.0,109680.0,0.79446706]
[1748333466200,0.03781261,109690.0,109680.0,0.79446706]
[1748333466412,0.01958075,109690.0,109680.0,0.79446706]
[1748333467072,0.02869676,109690.0,109680.0,0.44140294]
[1748333467284,0.03781302,109690.0,109680.0,0.44140294]
[1748333467463,0.02869676,109690.0,109680.0,0.79446706]
[1748333470374,0.0298877,109690.0,109680.0,0.79446706]
[1748333471232,0.03900413,109690.0,109680.0,0.77946706]
[1748333471454,0.05603728,109690.0,109680.0,0.77946706]
[1748333471670,0.04692085,109690.0,109680.0,0.77946706]
[1748333471885,0.05603728,109690.0,109680.0,0.77946706]
[1748333473981,0.04692085,109690.0,109680.0,0.77946706]
[1748333474340,0.05603728,109690.0,109680.0,0.77946706]
[1748333475053,0.0378045,109690.0,109680.0,0.77946706]
[1748333475265,0.04692093,109690.0,109680.0,0.77946706]
[1748333476416,0.04692093,109690.0,109680.0,0.79446706]
[1748333476621,0.0378045,109690.0,109680.0,0.79446706]
[1748333476840,0.04692085,109690.0,109680.0,0.79446706]
[1748333477750,0.04692085,109690.0,109680.0,0.82181906]
[1748333478492,0.04692085,109690.0,109680.0,1.09517906]
[1748333478993,0.0378045,109690.0,109680.0,1.09517906]
[1748333479640,0.04692085,109690.0,109680.0,1.09517906]
[1748333479843,0.05603728,109690.0,109680.0,1.09517906]
[1748333480035,0.0378045,109690.0,109680.0,1.09517906]
[1748333480601,0.04692076,109690.0,109680.0,1.09517906]
[1748333481077,0.04692076,109690.0,109680.0,0.82181906]
[1748333481288,0.0378045,109690.0,109680.0,0.82181906]
[1748333481499,0.0378045,109690.0,109680.0,0.46875494]
[1748333481703,0.0378045,109690.0,109680.0,0.82181906]
[1748333482295,0.04692076,109690.0,109680.0,0.82181906]
[1748333482699,0.0378045,109690.0,109680.0,0.82181906]
[1748333486236,0.04692093,109690.0,109680.0,0.80681906]
[1748333486382,0.04692093,109690.0,109680.0,0.76862506]
[1748333486582,0.0378045,109690.0,109680.0,0.76862506]
[1748333486854,0.04692093,109690.0,109680.0,0.76862506]
[1748333487054,0.04692085,109690.0,109680.0,0.76862506]
[1748333487547,0.05603728,109690.0,109680.0,0.76862506]
[1748333487988,0.2474859,109690.0,109680.0,0.41556094]
[1748333488195,0.24535371,109690.0,109680.0,0.62188211]
[1748333488424,0.20686591,109680.0,109670.0,0.35306412]
[1748333488608,0.20686591,109680.0,109670.0,0.58542939]
[1748333488849,0.20686591,109680.0,109670.0,0.74306412]
[1748333489065,0.20686591,109680.0,109670.0,0.40306412]
[1748333489272,0.22389906,109680.0,109670.0,0.87542939]
[1748333489480,0.22389906,109680.0,109670.0,0.92542939]
[1748333489691,0.22389906,109680.0,109670.0,0.74306412]
[1748333489902,0.24039906,109680.0,109670.0,0.39]
[1748333490115,0.24039906,109680.0,109670.0,0.74306412]
[1748333491438,0.24039906,109680.0,109670.0,0.34]
[1748333492742,0.32994462,109680.0,109670.0,0.34]
[1748333492963,0.32994462,109680.0,109670.0,0.39]
[1748333496123,0.36077899,109680.0,109670.0,0.39]
[1748333498932,0.32994462,109680.0,109670.0,0.39]
[1748333499479,0.32994462,109680.0,109670.0,0.34]
[1748333499687,0.32994462,109680.0,109670.0,0.39]
[1748333500454,0.3430451,109680.0,109670.0,0.39]
[1748333500680,0.3430451,109680.0,109670.0,0.34]
[1748333503393,0.32994462,109680.0,109670.0,0.34]
[1748333506009,0.19148336,109670.0,109660.0,0.75208345]
[1748333506660,0.20851651,109670.0,109660.0,0.75208345]
[1748333507205,0.22461651,109670.0,109660.0,0.75208345]
[1748333507413,0.49801651,109670.0,109660.0,0.75308345]
[1748333507622,0.66950399,109670.0,109660.0,0.001]
[1748333509449,0.61820292,109670.0,109660.0,0.003]
[1748333509842,0.61820292,109670.0,109660.0,0.001]
[1748333510271,0.22150082,109660.0,109650.0,0.00904603]
[1748333510480,0.31104638,109660.0,109650.0,0.00904603]
[1748333510711,0.1915183,109650.0,109640.0,0.35471412]
[1748333510919,0.1915183,109650.0,109640.0,0.40471412]
[1748333511358,0.20855145,109650.0,109640.0,0.40471412]
[1748333511574,0.20855145,109650.0,109640.0,0.36384416]
[1748333511978,0.20855145,109650.0,109640.0,0.36393512]
[1748333512184,0.22435145,109650.0,109640.0,0.36393512]
[1748333512725,0.22435145,109650.0,109640.0,0.010871]
[1748333513141,0.22435145,109650.0,109640.0,0.013871]
[1748333513554,0.24065145,109650.0,109640.0,0.013871]
[1748333514009,0.29190934,109650.0,109640.0,0.016871]
[1748333514390,0.24065145,109650.0,109640.0,0.016871]
[1748333514792,0.61817786,109650.0,109640.0,0.016871]
[1748333515266,0.34473786,109650.0,109640.0,0.016871]
[1748333515469,0.34473786,109650.0,109640.0,0.066871]
[1748333515750,0.34473786,109650.0,109640.0,0.06634795]
[1748333516412,0.32843786,109650.0,109640.0,0.06634795]
[1748333516824,0.32843786,109650.0,109640.0,0.01634795]
[1748333517053,0.32843786,109650.0,109640.0,0.06634795]
[1748333517809,0.32843786,109650.0,109640.0,0.40634795]
[1748333519092,0.41795937,109650.0,109640.0,0.40634795]
[1748333519874,0.43445937,109650.0,109640.0,0.40634795]
[1748333520382,0.32843786,109650.0,109640.0,0.40634795]
[1748333520828,0.31263786,109650.0,109640.0,0.40634795]
[1748333522242,0.34383786,109650.0,109640.0,0.40634795]
[1748333522659,0.34383786,109650.0,109640.0,0.35634795]
[1748333522864,0.34383786,109650.0,109640.0,0.40634795]
[1748333523063,0.61731786,109650.0,109640.0,0.40634795]
[1748333523807,0.6892598,109650.0,109640.0,0.35634795]
[1748333524558,0.6892598,109650.0,109640.0,0.40634795]
[1748333524970,0.68925958,109650.0,109640.0,0.35634795]
[1748333525170,0.68925958,109650.0,109640.0,0.40634795]
[1748333525396,0.68925958,109650.0,109640.0,0.35634795]
[1748333525951,0.67335958,109650.0,109640.0,0.35634795]
[1748333527252,0.67335958,109650.0,109640.0,0.40634795]
[1748333527426,0.60141764,109650.0,109640.0,0.40634795]
[1748333527636,0.58611764,109650.0,109640.0,0.40634795]
[1748333527839,0.58611764,109650.0,109640.0,0.35634795]
[1748333528064,0.58611764,109650.0,109640.0,0.40634795]
[1748333528576,0.60181764,109650.0,109640.0,0.40634795]
[1748333529375,0.58611764,109650.0,109640.0,0.40634795]
[1748333529807,0.67563915,109650.0,109640.0,0.40634795]
[1748333532132,0.67563915,109650.0,109640.0,0.35634795]
[1748333532602,0.69193915,109650.0,109640.0,0.35634795]
[1748333534256,0.61871764,109650.0,109640.0,0.35634795]
[1748333536116,0.60241764,109650.0,109640.0,0.35634795]
[1748333536366,0.61881764,109650.0,109640.0,0.35634795]
[1748333536606,0.61881764,109650.0,109640.0,0.00721791]
[1748333537341,0.64438325,109650.0,109640.0,0.00609096]
[1748333537595,1.09567168,109650.0,109640.0,0.00609096]
[1748333538077,0.74260756,109650.0,109640.0,0.00309096]
[1748333538307,1.11016898,109650.0,109640.0,0.00309096]
[1748333538741,1.11016898,109650.0,109640.0,9.096e-05]
[1748333539603,1.11116898,109650.0,109640.0,9.096e-05]
[1748333540020,1.11216898,109650.0,109640.0,9.096e-05]
[1748333541289,0.75910486,109650.0,109640.0,9.096e-05]
[1748333541501,1.11216898,109650.0,109640.0,9.096e-05]
[1748333542186,0.75910486,109650.0,109640.0,9.096e-05]
[1748333542412,1.09513605,109650.0,109640.0,9.096e-05]
[1748333543055,1.10272408,109650.0,109640.0,9.096e-05]
[1748333543272,1.11977528,109650.0,109640.0,9.096e-05]
[1748333543481,0.2171744,109630.0,109620.0,0.002]
[1748333543711,1.14576766,109630.0,109620.0,0.00209134]
[1748333543933,1.12926766,109630.0,109620.0,0.00209134]
[1748333544373,1.07105201,109630.0,109620.0,0.00209134]
[1748333544594,1.05400081,109630.0,109620.0,0.00209134]
[1748333544809,1.05400081,109630.0,109620.0,0.00309134]
[1748333545265,1.07978184,109630.0,109620.0,0.00309134]
[1748333545488,1.07105141,109630.0,109620.0,0.00309134]
[1748333545741,1.07105141,109630.0,109620.0,0.00509134]
[1748333545946,1.09517845,109630.0,109620.0,0.00509134]
[1748333546572,1.07105141,109630.0,109620.0,0.00509134]
[1748333547612,0.79753141,109630.0,109620.0,0.00509134]
[1748333547817,1.07105141,109630.0,109620.0,0.00509134]
[1748333549400,1.07105141,109630.0,109620.0,0.03599134]
[1748333549401,0.217725,109630.0,109620.0,0.03599134]
[1748333549605,0.217725,109630.0,109620.0,0.38905546]
[1748333549606,0.22684659,109630.0,109620.0,0.38905546]
[1748333549814,0.21772542,109630.0,109620.0,0.38905546]
[1748333550023,0.21772542,109630.0,109620.0,0.22756212]
[1748333550223,0.24949212,109630.0,109620.0,0.03599134]
[1748333550663,0.23244152,109630.0,109620.0,0.03599134]
[1748333550881,0.1915534,109630.0,109620.0,0.03599134]
[1748333551318,0.2085948,109630.0,109620.0,0.03599134]
[1748333551874,0.2085948,109630.0,109620.0,0.21843979]
[1748333552117,0.1915534,109630.0,109620.0,0.42599134]
[1748333552295,0.22895174,109630.0,109620.0,0.42599134]
[1748333552473,0.1915534,109630.0,109620.0,0.42599134]
[1748333553527,0.1915534,109630.0,109620.0,0.37599134]
[1748333553860,0.1915534,109630.0,109620.0,0.42599134]
[1748333557765,0.1915534,109630.0,109620.0,0.36079134]
[1748333558383,0.1915534,109630.0,109620.0,0.37699134]
[1748333558581,0.33625813,109630.0,109620.0,0.00509134]
[1748333559334,0.29563981,109630.0,109620.0,0.02099134]
[1748333559546,0.29563981,109630.0,109620.0,0.03679134]
[1748333563004,0.29563981,109630.0,109620.0,0.02099134]
[1748333563646,0.29563981,109630.0,109620.0,0.00509134]
[1748333564496,0.31163981,109630.0,109620.0,0.00509134]
[1748333564723,0.36104679,109630.0,109620.0,0.00509134]
[1748333564942,0.31163981,109630.0,109620.0,0.00509134]
[1748333565170,0.32803981,109630.0,109620.0,0.00509134]
[1748333565578,0.31163981,109630.0,109620.0,0.00509134]
[1748333566229,0.29563981,109630.0,109620.0,0.00509134]
[1748333567063,0.29563981,109630.0,109620.0,0.03799134]
[1748333567309,0.3441452,109630.0,109620.0,0.03799134]
[1748333567522,0.25459964,109630.0,109620.0,0.22956221]
[1748333567953,0.29939506,109630.0,109620.0,0.03799134]
[1748333568129,0.25459964,109630.0,109620.0,0.03799134]
[1748333569790,0.1915534,109630.0,109620.0,0.03799134]
[1748333570612,0.1915534,109630.0,109620.0,0.22043979]
[1748333570817,0.1915534,109630.0,109620.0,0.03799134]
[1748333571437,0.21717373,109630.0,109620.0,0.03799134]
[1748333572953,0.1915534,109630.0,109620.0,0.03799134]
[1748333574065,0.25888638,109630.0,109620.0,0.03799134]
[1748333574992,0.34843194,109630.0,109620.0,0.00509134]
[1748333575804,0.36493194,109630.0,109620.0,0.00509134]
[1748333576184,0.34843194,109630.0,109620.0,0.00509134]
[1748333577397,0.41149987,109630.0,109620.0,0.00509134]
[1748333578847,0.36978739,109630.0,109620.0,0.00509134]
[1748333579059,0.28024183,109630.0,109620.0,0.03759134]
[1748333586736,0.26374267,109630.0,109620.0,0.23828438]
[1748333586949,0.07218877,109630.0,109620.0,1.27315243]
[1748333587092,0.09043152,109630.0,109620.0,2.63229643]
[1748333587301,0.09043144,109630.0,109620.0,2.41509443]
[1748333587504,0.09043144,109630.0,109620.0,2.38061643]
[1748333587687,0.09955286,109630.0,109620.0,1.90856643]
[1748333588227,0.09955286,109630.0,109620.0,1.77120043]
[1748333589311,0.09955286,109630.0,109620.0,1.41813631]
[1748333589838,0.03648493,109630.0,109620.0,1.41813631]
[1748333591914,0.21891674,109630.0,109620.0,0.64653021]
[1748333592118,0.20067457,109630.0,109620.0,1.10652779]
[1748333592259,0.20067457,109630.0,109620.0,1.36180221]
[1748333592468,0.20067457,109630.0,109620.0,0.42759134]
[1748333592702,0.20067457,109630.0,109620.0,0.37759134]
[1748333593465,0.20067457,109630.0,109620.0,0.56916221]
[1748333593614,0.18243181,109630.0,109620.0,0.56916221]
[1748333593998,0.18243181,109630.0,109620.0,0.61916221]
[1748333594628,0.18243181,109630.0,109620.0,0.62828454]
[1748333595151,0.21464681,109640.0,109630.0,0.4058]
[1748333595377,0.21464681,109640.0,109630.0,0.61305331]
[1748333595709,0.21464681,109640.0,109630.0,0.63129607]
[1748333595909,0.21464681,109640.0,109630.0,0.61305331]
[1748333596338,0.21464681,109640.0,109630.0,0.90481607]
[1748333596543,0.21464681,109640.0,109630.0,1.66813344]
[1748333596544,0.03221686,109640.0,109630.0,1.66813344]
[1748333596757,0.04133695,109640.0,109630.0,1.66813344]
[1748333596950,0.01824043,109640.0,109630.0,1.66813344]
[1748333597604,0.01824043,109640.0,109630.0,1.69549844]
[1748333597830,0.02736093,109640.0,109630.0,1.69549844]
[1748333598277,0.01824043,109640.0,109630.0,1.69549844]
[1748333598474,0.01824043,109640.0,109630.0,1.21907732]
[1748333598703,0.02736102,109640.0,109630.0,1.57214144]
[1748333599159,0.02736102,109640.0,109630.0,1.46703844]
[1748333599365,0.01824043,109640.0,109630.0,1.42383844]
[1748333599572,0.02736093,109640.0,109630.0,1.42383844]
[1748333600192,0.03648152,109640.0,109630.0,1.42383844]
[1748333600409,0.04133653,109650.0,109640.0,0.62295642]
[1748333600622,0.04133553,109660.0,109650.0,0.63205731]
[1748333600827,0.03221686,109660.0,109650.0,2.19647343]
[1748333601036,0.04133529,109660.0,109650.0,2.19647343]
[1748333601247,0.03221686,109660.0,109650.0,2.28601899]
[1748333601894,0.03521686,109660.0,109650.0,2.28601899]
[1748333602525,0.03521686,109660.0,109650.0,2.2995517]
[1748333603240,0.03221686,109660.0,109650.0,2.2995517]
[1748333603419,0.0413352,109660.0,109650.0,2.3015517]
[1748333604072,0.05045371,109660.0,109650.0,1.6944607]
[1748333604312,0.01823685,109660.0,109650.0,1.6944607]
[1748333604980,0.01823685,109660.0,109650.0,1.6106757]
[1748333605159,0.21885634,109660.0,109650.0,0.91295068]
[1748333605360,0.21885634,109660.0,109650.0,1.2660148]
[1748333606063,0.209738,109660.0,109650.0,1.2660148]
[1748333606410,0.209738,109660.0,109650.0,0.63035109]
[1748333606626,0.19150082,109660.0,109650.0,0.63258]
[1748333606865,0.208507,109660.0,109650.0,0.63258]
[1748333607075,0.208507,109660.0,109650.0,0.66648]
[1748333607693,0.31335256,109660.0,109650.0,0.343]